bitfinex/quotes_SOLUSD_20250719
["timestamp","ask_amount","ask_price","bid_price","bid_amount"]
[1752944193206,0.06,177.59,177.58,50.53468397]
[1752944193405,0.06,177.59,177.58,94.28440386]
[1752944193618,0.06,177.59,177.58,93.60440386]
[1752944193812,0.06,177.59,177.58,94.28440386]
[1752944194689,0.06,177.59,177.58,104.32473945]
[1752944195207,0.06,177.59,177.58,105.54566864]
[1752944195419,0.06,177.59,177.58,94.28440386]
[1752944197220,0.06,177.59,177.58,93.60440386]
[1752944197927,0.77,177.59,177.58,43.06971989]
[1752944198095,0.77,177.59,177.58,3.58971989]
[1752944198290,0.77,177.59,177.57,43.04971989]
[1752944198496,0.77,177.59,177.58,3.58971989]
[1752944199611,6.40094768,177.59,177.58,3.58971989]
[1752944199797,0.06,177.59,177.58,3.58971989]
[1752944201903,0.77,177.59,177.58,26.0]
[1752944203028,6.40094768,177.59,177.58,26.0]
[1752944203895,0.77,177.59,177.58,26.0]
[1752944204100,0.06,177.59,177.58,26.0]
[1752944204524,0.06,177.59,177.58,4.26971989]
[1752944205838,0.06,177.59,177.58,26.68566864]
[1752944206050,0.06,177.59,177.58,33.18566864]
[1752944210635,0.06,177.59,177.58,66.93566864]
[1752944210824,0.06,177.59,177.58,67.49879511]
[1752944212737,0.06,177.61,177.6,50.53468397]
[1752944212941,0.06,177.61,177.6,100.64746692]
[1752944213114,0.06,177.61,177.6,101.30746692]
[1752944214137,0.06,177.61,177.6,106.93746692]
[1752944214633,0.06,177.61,177.6,112.56809755]
[1752944215340,6.36841806,177.67,177.6,112.56809755]
[1752944215341,89.97628523,177.77,177.63,42.78468397]
[1752944215517,3.58971989,177.69,177.64,43.02971989]
[1752944215717,3.58971989,177.68,177.64,39.44]
[1752944215937,3.58971989,177.68,177.64,43.02971989]
[1752944216145,3.58971989,177.68,177.64,3.58971989]
[1752944216524,5.62841222,177.67,177.64,3.58971989]
[1752944216739,5.62841222,177.67,177.64,29.58971989]
[1752944216919,5.62841222,177.67,177.64,26.0]
[1752944217339,0.19,177.66,177.64,26.0]
[1752944217538,0.19,177.65,177.64,26.0]
[1752944219149,5.81904587,177.65,177.64,26.0]
[1752944219340,5.62904587,177.65,177.64,26.0]
[1752944220940,5.81904587,177.65,177.64,26.0]
[1752944221530,23.48138045,177.65,177.61,6.5]
[1752944221774,1.5487,177.61,177.56,16.78468397]
[1752944221945,1.5487,177.61,177.53,0.03]
[1752944221946,3.58971989,177.57,177.53,0.03]
[1752944222126,3.58971989,177.56,177.53,0.03]
[1752944222458,3.77971989,177.56,177.53,0.03]
[1752944222763,3.77971989,177.56,177.53,26.03]
[1752944223154,3.58971989,177.57,177.53,26.03]
[1752944223343,3.58971989,177.58,177.53,29.61971989]
[1752944223548,3.58971989,177.58,177.54,0.66]
[1752944224029,9.22066757,177.59,177.54,43.68971989]
[1752944224228,9.41066757,177.59,177.54,43.68971989]
[1752944224432,5.63094768,177.59,177.56,3.58971989]
[1752944224765,5.63094768,177.59,177.56,4.24971989]
[1752944225257,5.63094768,177.59,177.56,0.66]
[1752944225756,5.63094768,177.59,177.55,3.58971989]
[1752944225932,5.63063063,177.6,177.56,0.66]
[1752944226125,9.22035052,177.6,177.56,0.66]
[1752944226321,5.63063063,177.6,177.56,4.24971989]
[1752944226522,5.63063063,177.6,177.57,29.58971989]
[1752944226762,5.63063063,177.6,177.57,26.66]
[1752944226939,5.63063063,177.6,177.57,30.24971989]
[1752944227650,5.63038557,177.61,177.58,0.66]
[1752944227856,5.63038557,177.61,177.59,4.24971989]
[1752944228227,5.62967967,177.63,177.59,4.24971989]
[1752944228435,9.40939956,177.63,177.58,3.58971989]
[1752944228640,9.40939956,177.63,177.58,4.24971989]
[1752944230748,5.62967967,177.63,177.6,3.58971989]
[1752944231068,5.62967967,177.63,177.61,4.24971989]
[1752944231273,5.68935163,177.65,177.62,3.58971989]
[1752944231645,5.68935163,177.65,177.62,4.24971989]
[1752944231964,5.68935163,177.65,177.62,3.58971989]
[1752944233551,5.68935163,177.65,177.61,3.58971989]
[1752944233956,5.87935163,177.65,177.61,3.58971989]
[1752944235967,3.77971989,177.64,177.6,65.44]
[1752944236157,3.58971989,177.64,177.6,65.44]
[1752944236476,0.19,177.63,177.6,65.44]
[1752944237062,5.62999662,177.62,177.6,65.44]
[1752944238067,5.62999662,177.62,177.6,66.1]
[1752944238665,5.62999662,177.62,177.6,69.68971989]
[1752944238864,5.62999662,177.62,177.6,30.24971989]
[1752944239054,5.62936275,177.64,177.6,30.24971989]
[1752944239851,5.62936275,177.64,177.61,3.58971989]
[1752944240062,5.62936275,177.64,177.61,4.24971989]
[1752944241867,5.62936275,177.64,177.6,26.0]
[1752944241868,5.62936275,177.64,177.62,4.24971989]
[1752944242078,5.62936275,177.64,177.62,3.58971989]
[1752944242260,5.81936275,177.64,177.61,3.58971989]
[1752944243054,5.62936275,177.64,177.61,3.58971989]
[1752944243488,5.62936275,177.64,177.6,30.24971989]
[1752944244078,5.81936275,177.64,177.6,30.24971989]
[1752944244404,5.62936275,177.64,177.6,30.24971989]
[1752944246581,5.62936275,177.64,177.6,26.66]
[1752944246789,0.19,177.63,177.6,26.0]
[1752944246993,3.77971989,177.63,177.6,26.0]
[1752944247786,19.70276964,177.64,177.61,4.28971989]
[1752944247963,19.70276964,177.64,177.61,3.58971989]
[1752944248289,5.62936275,177.64,177.62,0.7]
[1752944248953,5.68904587,177.65,177.62,4.28971989]
[1752944249163,5.68904587,177.65,177.63,4.28971989]
[1752944251502,0.06,177.65,177.63,4.28971989]
[1752944254778,0.06,177.65,177.63,0.7]
[1752944256573,0.06,177.65,177.62,43.02971989]
[1752944256776,0.06,177.65,177.62,40.14]
[1752944256984,3.83971989,177.65,177.62,39.44]
[1752944257580,3.83971989,177.65,177.61,3.58971989]
[1752944257777,3.83971989,177.65,177.61,4.28971989]
[1752944258383,5.62936275,177.64,177.61,4.28971989]
[1752944258700,5.62936275,177.64,177.62,0.7]
[1752944260884,5.68904587,177.65,177.61,3.58971989]
[1752944261188,3.58971989,177.64,177.6,65.42]
[1752944261495,3.58971989,177.64,177.6,66.12]
[1752944261675,3.77971989,177.64,177.6,66.12]
[1752944262497,3.58971989,177.63,177.59,6.5]
[1752944262704,3.77971989,177.63,177.6,26.0]
[1752944263073,5.62999662,177.62,177.61,26.0]
[1752944264397,5.62936275,177.64,177.61,26.0]
[1752944264583,5.62936275,177.64,177.61,26.7]
[1752944270293,5.62936275,177.64,177.62,0.7]
[1752944272696,5.62936275,177.64,177.63,0.7]
[1752944273193,0.06,177.65,177.64,26.0]
[1752944273389,0.06,177.65,177.64,29.58971989]
[1752944273592,0.06,177.65,177.64,30.29971989]
[1752944274197,0.06,177.65,177.64,69.71971989]
[1752944275696,0.06,177.65,177.64,86.50440386]
[1752944277502,0.06,177.65,177.64,93.00440386]
[1752944278020,0.06,177.65,177.64,88.70468397]
[1752944278217,0.06,177.65,177.64,71.92]
[1752944278418,0.06,177.65,177.64,32.5]
[1752944278598,0.06,177.65,177.64,33.21]
[1752944280507,3.83971989,177.65,177.59,0.71]
[1752944280823,3.58971989,177.64,177.59,43.69971989]
[1752944280995,3.58971989,177.63,177.59,40.11]
[1752944281402,3.58971989,177.62,177.59,40.11]
[1752944281604,3.58971989,177.63,177.6,26.71]
[1752944281926,3.58971989,177.64,177.6,26.71]
[1752944282130,3.58971989,177.64,177.61,0.71]
[1752944282631,5.62967967,177.63,177.62,0.71]
[1752944284334,5.62936275,177.64,177.62,0.71]
[1752944284723,5.62936275,177.64,177.63,0.71]
[1752944287423,5.62936275,177.64,177.61,0.71]
[1752944289741,9.40908264,177.64,177.6,29.58971989]
[1752944290237,9.21908264,177.64,177.61,0.71]
[1752944290438,9.21908264,177.64,177.6,29.58971989]
[1752944290643,9.21908264,177.64,177.6,26.71]
[1752944291013,9.21908264,177.64,177.61,0.71]
[1752944291633,14.13283304,177.65,177.61,0.71]
[1752944291819,3.58971989,177.64,177.62,0.71]
[1752944292022,3.58971989,177.64,177.6,30.29971989]
[1752944292221,3.58971989,177.64,177.61,0.71]
[1752944292618,3.58971989,177.64,177.62,0.71]
[1752944292820,14.13283304,177.65,177.6,29.58971989]
[1752944293127,14.13283304,177.65,177.61,4.29971989]
[1752944293128,0.06,177.65,177.61,4.29971989]
[1752944293337,3.64971989,177.65,177.62,0.71]
[1752944293719,5.62936275,177.64,177.62,0.71]
[1752944294651,5.62936275,177.64,177.6,30.29971989]
[1752944294939,9.21908264,177.64,177.6,26.71]
[1752944296142,3.58971989,177.63,177.6,26.0]
[1752944296332,3.58971989,177.63,177.6,26.71]
[1752944296636,3.58971989,177.63,177.6,26.0]
[1752944296822,19.70276964,177.64,177.61,0.71]
[1752944297138,23.29248953,177.64,177.61,0.71]
[1752944298027,23.29248953,177.64,177.62,0.71]
[1752944300244,9.21908264,177.64,177.62,0.71]
[1752944303342,9.21908264,177.64,177.6,26.66]
[1752944303546,9.21908264,177.64,177.61,0.66]
[1752944305744,3.58971989,177.62,177.59,0.03]
[1752944305931,3.58971989,177.6,177.59,1e-08]
[1752944306535,3.77971989,177.6,177.59,1e-08]
[1752944307136,9.41035052,177.6,177.59,1e-08]
[1752944309865,9.41035052,177.6,177.57,1e-08]
[1752944310034,3.58971989,177.58,177.57,1e-08]
[1752944310432,3.77971989,177.58,177.57,1e-08]
[1752944310632,7.36943978,177.58,177.55,0.03]
[1752944310955,3.58971989,177.56,177.55,0.03]
[1752944311148,9.22161896,177.56,177.55,0.03]
[1752944311351,9.41161896,177.56,177.53,0.03]
[1752944311673,5.82189907,177.56,177.53,0.03]
[1752944311963,3.58971989,177.54,177.53,0.03]
[1752944312658,9.2222534,177.54,177.53,0.03]
[1752944313858,5.63253351,177.54,177.53,0.69]
[1752944315051,5.63221627,177.55,177.53,0.69]
[1752944316040,5.63221627,177.55,177.54,0.66]
[1752944318146,5.63189907,177.56,177.54,0.66]
[1752944319044,5.63189907,177.56,177.54,4.24971989]
[1752944319235,5.63189907,177.56,177.55,0.66]
[1752944320068,5.63126478,177.58,177.55,0.66]
[1752944320569,5.63126478,177.58,177.56,0.66]
[1752944321885,5.63126478,177.58,177.57,0.66]
[1752944322451,5.63126478,177.58,177.56,0.66]
[1752944323161,5.63094768,177.59,177.56,0.66]
[1752944324069,5.63094768,177.59,177.57,0.66]
[1752944324257,5.63094768,177.59,177.57,4.24971989]
[1752944324458,5.63094768,177.59,177.58,4.24971989]
[1752944324660,5.63094768,177.59,177.58,3.58971989]
[1752944324854,5.63094768,177.59,177.58,4.24971989]
[1752944325374,5.62999662,177.62,177.58,4.24971989]
[1752944325556,3.58971989,177.6,177.56,26.0]
[1752944325749,3.58971989,177.57,177.55,26.0]
[1752944325948,3.58971989,177.56,177.53,0.03]
[1752944326278,3.58971989,177.56,177.53,0.69]
[1752944326460,3.58971989,177.56,177.53,26.69]
[1752944326871,3.58971989,177.57,177.53,26.03]
[1752944327078,3.58971989,177.57,177.54,0.66]
[1752944327461,5.63189907,177.56,177.54,0.66]
[1752944329171,19.70952408,177.58,177.54,0.66]
[1752944329476,3.58971989,177.57,177.54,0.66]
[1752944330779,19.70952408,177.58,177.54,0.66]
[1752944330979,3.58971989,177.57,177.54,0.66]
[1752944331474,5.63189907,177.56,177.54,0.66]
[1752944332377,5.63189907,177.56,177.55,0.66]
[1752944332960,5.63189907,177.56,177.55,4.24971989]
[1752944333158,5.69165412,177.57,177.55,4.29971989]
[1752944333365,5.69165412,177.57,177.56,0.71]
[1752944333577,0.06,177.57,177.56,0.71]
[1752944340452,0.06,177.57,177.55,3.58971989]
[1752944340673,0.06,177.57,177.54,4.29971989]
[1752944341075,3.58971989,177.56,177.53,26.03]
[1752944341283,3.58971989,177.56,177.53,0.03]
[1752944341656,3.58971989,177.54,177.53,0.03]
[1752944341876,3.77971989,177.54,177.53,0.03]
[1752944342382,3.77971989,177.54,177.53,1e-08]
[1752944342584,48.7922534,177.54,177.51,0.03]
[1752944342787,3.58971989,177.53,177.51,0.03]
[1752944342962,45.01253351,177.54,177.52,0.71]
[1752944343285,17.67024736,177.56,177.53,4.29971989]
[1752944343286,5.63189907,177.56,177.53,4.29971989]
[1752944343585,0.06,177.57,177.55,3.58971989]
[1752944343586,5.69166577,177.57,177.55,3.58971989]
[1752944343774,5.69166577,177.57,177.56,3.58971989]
[1752944343971,5.69166577,177.57,177.56,4.29971989]
[1752944344577,0.06,177.57,177.54,0.71]
[1752944344760,0.06,177.57,177.53,6.5274]
[1752944344761,0.06,177.57,177.56,3.58971989]
[1752944345258,0.06,177.57,177.56,4.29971989]
[1752944345459,0.06,177.57,177.56,3.58971989]
[1752944346688,0.06,177.57,177.55,3.58971989]
[1752944346889,0.06,177.57,177.55,4.29971989]
[1752944348382,0.06,177.57,177.56,4.29971989]
[1752944350160,0.06,177.57,177.52,32.5]
[1752944350475,0.06,177.57,177.55,29.58971989]
[1752944351386,0.06,177.57,177.56,4.29971989]
[1752944362193,0.06,177.57,177.56,0.71]
[1752944362379,0.06,177.57,177.56,47.08440386]
[1752944366299,0.06,177.57,177.56,53.58440386]
[1752944374812,0.06,177.57,177.56,49.99468397]
[1752944375026,0.06,177.57,177.56,53.58440386]
[1752944375595,0.06,177.57,177.56,49.99468397]
[1752944375806,0.06,177.57,177.56,53.58440386]
[1752944375989,0.06,177.57,177.56,36.79971989]
[1752944378116,0.06,177.57,177.56,30.29971989]
[1752944378992,0.06,177.57,177.56,29.01018158]
[1752944379198,0.06,177.57,177.56,26.0]
[1752944379512,0.06,177.57,177.55,2.30018158]
[1752944379809,0.06,177.57,177.54,28.97018158]
[1752944380182,0.19,177.56,177.54,26.0]
[1752944380386,2.49018158,177.56,177.52,2.33018158]
[1752944380616,2.49018158,177.56,177.53,26.0]
[1752944380982,3.59625149,177.56,177.53,26.0]
[1752944381207,5.63221627,177.55,177.53,26.67]
[1752944381406,5.63221627,177.55,177.54,0.67]
[1752944382786,5.63189907,177.56,177.54,0.67]
[1752944383405,5.63189907,177.56,177.53,30.26625149]
[1752944383990,5.63189907,177.56,177.54,0.67]
[1752944384298,23.49789825,177.56,177.52,0.03]
[1752944384498,3.59625149,177.54,177.52,0.03]
[1752944384706,3.59625149,177.53,177.52,0.03]
[1752944385110,3.78625149,177.53,177.52,0.03]
[1752944385907,3.59625149,177.53,177.52,0.03]
[1752944386111,9.22910227,177.53,177.52,0.03]
[1752944390700,5.63253351,177.54,177.52,0.03]
[1752944390902,3.59625149,177.53,177.52,0.03]
[1752944391821,5.63253351,177.54,177.52,0.03]
[1752944392211,5.63253351,177.54,177.52,0.7]
[1752944392412,9.228785,177.54,177.52,0.7]
[1752944392613,9.228785,177.54,177.52,0.03]
[1752944393644,5.63253351,177.54,177.52,0.03]
[1752944393833,9.228785,177.54,177.52,0.03]
[1752944394920,5.63253351,177.54,177.53,0.66]
[1752944398434,5.69253351,177.54,177.53,0.66]
[1752944398632,5.69253351,177.54,177.52,0.03]
[1752944398934,5.69253351,177.54,177.52,0.69]
[1752944399633,45.03253351,177.54,177.52,0.69]
[1752944400201,45.03253351,177.54,177.52,0.03]
[1752944400406,45.03253351,177.54,177.53,0.66]
[1752944400619,45.03253351,177.54,177.52,0.69]
[1752944401501,45.03253351,177.54,177.52,0.03]
[1752944401709,0.19,177.53,177.51,0.03]
[1752944401930,43.12625149,177.52,177.5,0.03]
[1752944402131,3.59625149,177.51,177.5,0.03]
[1752944402312,9.41973692,177.51,177.49,0.0877269]
[1752944402506,3.59625149,177.5,177.49,0.0877269]
[1752944402712,3.78625149,177.5,177.49,0.0877269]
[1752944403029,5.63348543,177.51,177.49,4.34397839]
[1752944403212,5.63323402,177.52,177.49,0.0877269]
[1752944403419,3.59625149,177.5,177.49,0.0877269]
[1752944403619,42.93625149,177.5,177.49,0.0877269]
[1752944404429,48.5700543,177.5,177.49,0.0877269]
[1752944406341,62.84456134,177.5,177.46,0.03]
[1752944406534,3.59625149,177.47,177.46,1e-08]
[1752944406836,3.59625149,177.47,177.45,1e-08]
[1752944406837,42.93625149,177.47,177.45,1e-08]
[1752944407010,3.78625149,177.46,177.45,1e-08]
[1752944407412,3.59625149,177.46,177.45,1e-08]
[1752944407619,9.23132418,177.46,177.45,1e-08]
[1752944408113,5.63507269,177.46,177.45,1e-08]
[1752944408313,9.23132418,177.46,177.45,1e-08]
[1752944408512,48.57132418,177.46,177.45,1e-08]
[1752944408922,48.76132418,177.46,177.45,1e-08]
[1752944409534,48.57132418,177.46,177.45,1e-08]
[1752944410432,48.76132418,177.46,177.45,1e-08]
[1752944411029,44.97507269,177.46,177.45,1e-08]
[1752944411328,5.63507269,177.46,177.45,0.66000001]
[1752944411534,44.97507269,177.46,177.45,0.66000001]
[1752944413442,5.63443768,177.48,177.45,4.2562515]
[1752944413638,44.99443768,177.48,177.46,4.25625149]
[1752944413818,44.99443768,177.48,177.47,0.66]
[1752944414019,44.99443768,177.48,177.47,4.25625149]
[1752944414214,3.59625149,177.52,177.47,4.25625149]
[1752944414432,39.36,177.51,177.5,3.59625149]
[1752944414627,39.36,177.51,177.48,26.0]
[1752944414827,39.36,177.51,177.5,4.25625149]
[1752944415127,44.99348543,177.51,177.5,4.25625149]
[1752944415519,44.99348543,177.51,177.5,0.66]
[1752944415719,44.99348543,177.51,177.48,30.25625149]
[1752944415919,44.99348543,177.51,177.5,0.66]
[1752944416340,44.99348543,177.51,177.5,4.25625149]
[1752944418053,5.63348543,177.51,177.5,4.25625149]
[1752944420450,0.06,177.54,177.5,4.25625149]
[1752944420626,0.06,177.54,177.52,3.59625149]
[1752944420627,39.34,177.53,177.52,3.59625149]
[1752944420826,39.34,177.53,177.52,4.25625149]
[1752944421547,44.97285078,177.53,177.51,3.59625149]
[1752944421728,44.97285078,177.53,177.51,4.25625149]
[1752944422540,44.97285078,177.53,177.52,0.66]
[1752944424760,44.97285078,177.53,177.51,3.59625149]
[1752944425131,44.97285078,177.53,177.51,4.31625149]
[1752944425332,44.97285078,177.53,177.5,26.0]
[1752944425535,44.97285078,177.53,177.5,29.59625149]
[1752944425764,44.97285078,177.53,177.51,0.72]
[1752944425970,3.59625149,177.52,177.48,0.72]
[1752944426263,45.16285078,177.53,177.48,0.72]
[1752944426264,39.34,177.51,177.48,0.72]
[1752944426466,39.34,177.51,177.49,0.72]
[1752944427054,5.63380281,177.5,177.49,0.72]
[1752944429552,5.63380281,177.5,177.49,4.31625149]
[1752944431150,5.63380281,177.5,177.49,0.72]
[1752944432759,5.63380281,177.5,177.47,29.59625149]
[1752944432956,5.63380281,177.5,177.49,0.72]
[1752944434795,3.65625149,177.54,177.49,4.31625149]
[1752944434976,5.63285078,177.53,177.5,26.72]
[1752944435140,5.63285078,177.53,177.52,29.59625149]
[1752944435340,5.63285078,177.53,177.52,30.31625149]
[1752944435539,5.63285078,177.53,177.52,26.72]
[1752944437067,0.06,177.54,177.52,26.72]
[1752944437266,0.06,177.54,177.52,26.0]
[1752944437444,0.06,177.54,177.53,0.72]
[1752944439059,0.06,177.54,177.53,4.31625149]
[1752944439868,0.06,177.54,177.53,0.72]
[1752944440063,0.06,177.54,177.53,4.31625149]
[1752944440260,0.06,177.54,177.53,0.72]
[1752944441373,0.06,177.54,177.53,4.31625149]
[1752944442854,0.06,177.54,177.53,36.81625149]
[1752944446178,0.06,177.54,177.53,30.31625149]
[1752944458664,0.06,177.54,177.53,26.72]
[1752944458858,0.06,177.54,177.53,30.31625149]
[1752944460992,0.06,177.54,177.53,26.72]
[1752944461291,0.06,177.54,177.53,30.31625149]
[1752944464589,0.06,177.54,177.53,26.72]
[1752944464851,0.06,177.54,177.53,26.0]
[1752944465068,0.06,177.54,177.53,26.7]
[1752944465772,0.06,177.54,177.53,30.29625149]
[1752944466189,0.06,177.54,177.53,4.29625149]
[1752944466975,0.06,177.54,177.53,61.34093546]
[1752944468890,0.06,177.54,177.53,87.34093546]
[1752944469870,0.06,177.54,177.53,36.79625149]
[1752944471385,0.06,177.54,177.53,36.09625149]
[1752944471583,0.06,177.54,177.53,36.79625149]
[1752944472884,0.06,177.54,177.53,30.29625149]
[1752944476901,0.06,177.54,177.53,26.0]
[1752944477499,0.06,177.54,177.53,29.59625149]
[1752944477802,0.06,177.54,177.53,30.29625149]
[1752944480593,0.06,177.54,177.53,26.0]
[1752944480794,0.06,177.54,177.53,29.59625149]
[1752944481286,0.06,177.54,177.5,3.59625149]
[1752944481691,0.06,177.54,177.52,26.0]
[1752944482818,0.06,177.54,177.53,4.29625149]
[1752944482989,0.06,177.54,177.53,30.29625149]
[1752944485094,0.06,177.54,177.53,69.59625149]
[1752944486817,0.06,177.54,177.53,66.0]
[1752944487011,0.06,177.54,177.53,69.59625149]
[1752944487490,0.06,177.54,177.53,76.09625149]
[1752944491321,0.06,177.54,177.53,109.85625149]
[1752944492317,0.06,177.54,177.53,76.09625149]
[1752944492516,0.06,177.54,177.53,32.5]
[1752944493021,0.06,177.54,177.53,36.77625149]
[1752944493524,0.06,177.54,177.53,4.27625149]
[1752944494526,0.06,177.54,177.53,66.95378624]
[1752944497021,0.06,177.54,177.53,57.72468397]
[1752944497224,0.06,177.54,177.53,61.32093546]
[1752944498829,0.06,177.54,177.53,100.62093546]
[1752944499830,0.06,177.54,177.53,106.25378624]
[1752944501104,0.06,177.54,177.53,106.81707131]
[1752944502120,0.06,177.54,177.53,106.25378624]
[1752944516545,0.06,177.57,177.56,59.76]
[1752944516749,0.06,177.57,177.56,112.73250298]
[1752944516948,0.06,177.57,177.56,113.43250298]
[1752944517250,0.06,177.57,177.56,130.21718695]
[1752944517656,0.06,177.58,177.57,50.54468397]
[1752944517952,0.06,177.58,177.57,58.43718695]
[1752944518131,0.06,177.58,177.57,51.24468397]
[1752944518333,0.06,177.58,177.57,89.82468397]
[1752944518650,0.06,177.58,177.57,93.42093546]
[1752944520155,0.06,177.58,177.57,99.92093546]
[1752944520346,0.06,177.58,177.57,100.62093546]
[1752944520748,0.06,177.58,177.57,110.41192705]
[1752944521333,0.06,177.58,177.57,127.31192705]
[1752944521560,0.06,177.61,177.6,33.76]
[1752944521762,0.06,177.61,177.6,82.97625149]
[1752944521970,0.06,177.61,177.6,83.67625149]
[1752944522631,0.06,177.61,177.6,106.65462915]
[1752944523531,0.06,177.62,177.61,50.54468397]
[1752944523732,0.06,177.62,177.61,54.84093546]
[1752944523955,0.06,177.65,177.64,76.54468397]
[1752944524258,0.06,177.65,177.64,125.74093546]
[1752944524647,0.06,177.65,177.64,132.07029821]
[1752944524962,0.06,177.65,177.64,126.44093546]
[1752944527436,0.06,177.65,177.64,132.07029821]
[1752944528055,0.06,177.65,177.64,126.44093546]
[1752944528238,0.06,177.65,177.64,125.74093546]
[1752944529531,0.06,177.65,177.64,126.44093546]
[1752944529836,0.06,177.65,177.64,132.07029821]
[1752944530235,0.06,177.65,177.64,135.6665497]
[1752944530435,0.06,177.65,177.64,132.07029821]
[1752944531742,0.06,177.65,177.64,135.6665497]
[1752944533166,0.06,177.65,177.64,132.07029821]
[1752944539160,0.06,177.65,177.64,83.58468397]
[1752944539357,0.06,177.65,177.64,132.05029821]
[1752944540272,0.06,177.65,177.64,135.6465497]
[1752944541848,0.06,177.65,177.64,132.05029821]
[1752944549281,4.63721099,177.71,177.69,26.0]
[1752944549461,5.82694031,177.72,177.71,26.0]
[1752944552389,4.32694031,177.72,177.71,26.0]
[1752944552967,21.99026359,177.72,177.64,33.76]
[1752944553191,3.59625149,177.7,177.65,3.59625149]
[1752944553581,5.62777871,177.69,177.67,26.0]
[1752944554188,5.62777871,177.69,177.64,73.68]
[1752944554391,17.66332328,177.72,177.67,3.59625149]
[1752944554882,5.62714534,177.71,177.67,3.59625149]
[1752944556398,19.69500871,177.71,177.63,26.0]
[1752944556571,3.59625149,177.69,177.67,26.0]
[1752944557568,3.59625149,177.7,177.67,26.0]
[1752944557983,5.62777871,177.69,177.67,26.0]
[1752944559204,3.59625149,177.68,177.62,0.03]
[1752944559396,3.59625149,177.68,177.65,26.0]
[1752944559908,3.59625149,177.67,177.63,39.22]
[1752944560108,3.59625149,177.67,177.63,3.59625149]
[1752944560278,3.59625149,177.64,177.62,0.03]
[1752944560681,3.59625149,177.65,177.62,0.03]
[1752944560880,24.91137698,177.69,177.64,29.59625149]
[1752944562305,21.31512549,177.69,177.65,30.27625149]
[1752944563008,21.31512549,177.69,177.65,29.59625149]
[1752944564908,7.24567871,177.69,177.65,29.59625149]
[1752944565106,7.24567871,177.69,177.66,4.27625149]
[1752944565282,7.24567871,177.69,177.66,3.59625149]
[1752944571912,5.62777871,177.69,177.66,3.59625149]
[1752944572118,5.62777871,177.69,177.67,3.59625149]
[1752944572919,5.62777871,177.69,177.66,4.30625149]
[1752944573109,5.62777871,177.69,177.66,0.03]
[1752944573285,9.2240302,177.69,177.66,0.03]
[1752944573836,3.59625149,177.68,177.66,26.03]
[1752944574136,9.2240302,177.69,177.66,26.03]
[1752944574519,5.62777871,177.69,177.66,29.62625149]
[1752944574703,5.62777871,177.69,177.67,0.71]
[1752944574907,5.62777871,177.69,177.67,4.30625149]
[1752944575617,5.62714534,177.71,177.67,3.59625149]
[1752944575922,9.22339683,177.71,177.66,30.33625149]
[1752944576422,9.22339683,177.71,177.67,4.30625149]
[1752944576625,9.22339683,177.71,177.67,0.71]
[1752944577130,9.22339683,177.71,177.67,4.30625149]
[1752944579312,9.2230802,177.72,177.67,4.30625149]
[1752944579500,5.62682871,177.72,177.67,4.30625149]
[1752944579702,9.2230802,177.72,177.67,4.30625149]
[1752944580415,23.29015199,177.72,177.67,4.30625149]
[1752944580616,3.59625149,177.71,177.67,0.71]
[1752944581334,5.62746201,177.7,177.67,0.71]
[1752944582220,5.62746201,177.7,177.66,30.33625149]
[1752944582825,9.2237135,177.7,177.66,26.03]
[1752944583732,5.62746201,177.7,177.66,29.62625149]
[1752944584124,5.62746201,177.7,177.66,26.03]
[1752944584432,5.62746201,177.7,177.66,30.33625149]
[1752944584841,5.62746201,177.7,177.66,26.74]
[1752944585000,5.62746201,177.7,177.66,30.33625149]
[1752944585808,5.62746201,177.7,177.67,0.71]
[1752944586638,5.62619556,177.74,177.67,3.59625149]
[1752944586850,5.62619556,177.74,177.72,3.59625149]
[1752944587024,5.62619556,177.74,177.71,0.71]